Workbook

Sheet Input Volumes
B2: Complete these entries first
B4: Duration: | C4: 12
B5: At Risk: | C5: 3
B6: Cal. Start: | C6: 2025-01-01
G10: Cal. Date: | H10: 2024-10-01 | I10: =EDATE($C$6, I$12) -> 2024-11-01 | J10: =EDATE($C$6, J$12) -> 2024-12-01 | K10: =EDATE($C$6, K$12-1) -> 2025-01-01 | L10: =EDATE($C$6, L$12-1) -> 2025-02-01 | M10: 2025-03-01 | N10: 2025-04-01 | O10: 2025-05-01 | P10: 2025-06-01 | Q10: 2025-07-01 | R10: 2025-08-01 | S10: 2025-09-01 | T10: 2025-10-01 | U10: 2025-11-01 | V10: 2025-12-01
C11: Freeform Descriptive Fields | I11: At risk months | Q11: Year 1
B12: Line No. | C12: Desc. 1 | D12: Desc. 2 | E12: Desc. 3 | F12: Scaling | G12: Vol. Unit | H12: -3 | I12: -2 | J12: -1 | K12: 1 | L12: 2 | M12: 3 | N12: 4 | O12: 5 | P12: 6 | Q12: 7 | R12: 8 | S12: 9 | T12: 10 | U12: 11 | V12: 12
B13: 1 | E13: Widget A | G13: hundreds | H13: 0 | I13: 1 | J13: 1 | K13: 3.1 | L13: 4.2 | M13: 5.3 | N13: 5.4 | O13: 5.4 | P13: 5.4 | Q13: 5.4 | R13: 5.4 | S13: 5.4 | T13: 5.4 | U13: 5.4 | V13: 5.4
B14: 2 | E14: Widget B | G14: units | I14: 10 | J14: 10 | K14: 35 | L14: 40 | M14: 40 | N14: 40 | O14: 40 | P14: 40 | Q14: 40 | R14: 40 | S14: 40 | T14: 40 | U14: 40 | V14: 40
B15: 3
B16: 4
B17: 5
B18: 6
B19: 7
B20: 8
B21: 9
B22: 10

Sheet Input Costs
J5: ='Input Volumes'!G10 -> Cal. Date: | K5: ='Input Volumes'!H10 -> 2024-10-01 | L5: ='Input Volumes'!I10 -> 2024-11-01 | M5: ='Input Volumes'!J10 -> 2024-12-01 | N5: ='Input Volumes'!K10 -> 2025-01-01 | O5: ='Input Volumes'!L10 -> 2025-02-01 | P5: ='Input Volumes'!M10 -> 2025-03-01 | Q5: ='Input Volumes'!N10 -> 2025-04-01 | R5: ='Input Volumes'!O10 -> 2025-05-01 | S5: ='Input Volumes'!P10 -> 2025-06-01 | T5: ='Input Volumes'!Q10 -> 2025-07-01 | U5: ='Input Volumes'!R10 -> 2025-08-01 | V5: ='Input Volumes'!S10 -> 2025-09-01 | W5: ='Input Volumes'!T10 -> 2025-10-01 | X5: ='Input Volumes'!U10 -> 2025-11-01 | Y5: ='Input Volumes'!V10 -> 2025-12-01
L6: At risk months | T6: Year 1
B7: Line No. | C7: ='Input Volumes'!C12 -> Desc. 1 | D7: ='Input Volumes'!D12 -> Desc. 2 | E7: ='Input Volumes'!E12 -> Desc. 3 | F7: Factor 1 | G7: Factor 2 | H7: Factor 3 | I7: Unit Cost | J7: Vol. Unit | K7: -3 | L7: ='Input Volumes'!I12 -> -2 | M7: ='Input Volumes'!J12 -> -1 | N7: ='Input Volumes'!K12 -> 1 | O7: ='Input Volumes'!L12 -> 2 | P7: ='Input Volumes'!M12 -> 3 | Q7: ='Input Volumes'!N12 -> 4 | R7: ='Input Volumes'!O12 -> 5 | S7: ='Input Volumes'!P12 -> 6 | T7: ='Input Volumes'!Q12 -> 7 | U7: ='Input Volumes'!R12 -> 8 | V7: ='Input Volumes'!S12 -> 9 | W7: ='Input Volumes'!T12 -> 10 | X7: 11 | Y7: 12 | AA7: Totals
B8: 1 | C8: =IF('Input Volumes'!C13=0,"",'Input Volumes'!C13) ->  | D8: =IF('Input Volumes'!D13=0,"",'Input Volumes'!D13) ->  | E8: =IF('Input Volumes'!E13=0,"",'Input Volumes'!E13) -> Widget A | I8: 52.43 | J8: =IF('Input Volumes'!G13="","",'Input Volumes'!G13) -> hundreds | K8: ='Input Volumes'!H13*'Input Costs'!$I8 -> 0 | L8: ='Input Volumes'!I13*'Input Costs'!$I8 -> 52.43 | M8: ='Input Volumes'!J13*'Input Costs'!$I8 -> 52.43 | N8: ='Input Volumes'!K13*'Input Costs'!$I8 -> 162.533 | O8: ='Input Volumes'!L13*'Input Costs'!$I8 -> 220.206 | P8: ='Input Volumes'!M13*'Input Costs'!$I8 -> 277.879 | Q8: ='Input Volumes'!N13*'Input Costs'!$I8 -> 283.122 | R8: ='Input Volumes'!O13*'Input Costs'!$I8 -> 283.122 | S8: ='Input Volumes'!P13*'Input Costs'!$I8 -> 283.122 | T8: ='Input Volumes'!Q13*'Input Costs'!$I8 -> 283.122 | U8: ='Input Volumes'!R13*'Input Costs'!$I8 -> 283.122 | V8: ='Input Volumes'!S13*'Input Costs'!$I8 -> 283.122 | W8: ='Input Volumes'!T13*'Input Costs'!$I8 -> 283.122 | X8: ='Input Volumes'!U13*'Input Costs'!$I8 -> 283.122 | Y8: ='Input Volumes'!V13*'Input Costs'!$I8 -> 283.122 | AA8: =SUM($K8:OFFSET($K8,0,'Input Volumes'!$C$4+'Input Volumes'!$C$5 - 1)) -> 3313.576
B9: 2 | C9: =IF('Input Volumes'!C14=0,"",'Input Volumes'!C14) ->  | D9: =IF('Input Volumes'!D14=0,"",'Input Volumes'!D14) ->  | E9: =IF('Input Volumes'!E14=0,"",'Input Volumes'!E14) -> Widget B | I9: 532.08 | J9: =IF('Input Volumes'!G14="","",'Input Volumes'!G14) -> units | K9: ='Input Volumes'!H14*'Input Costs'!$I9 -> 0 | L9: ='Input Volumes'!I14*'Input Costs'!$I9 -> 5320.8 | M9: ='Input Volumes'!J14*'Input Costs'!$I9 -> 5320.8 | N9: ='Input Volumes'!K14*'Input Costs'!$I9 -> 18622.8 | O9: ='Input Volumes'!L14*'Input Costs'!$I9 -> 21283.2 | P9: ='Input Volumes'!M14*'Input Costs'!$I9 -> 21283.2 | Q9: ='Input Volumes'!N14*'Input Costs'!$I9 -> 21283.2 | R9: ='Input Volumes'!O14*'Input Costs'!$I9 -> 21283.2 | S9: ='Input Volumes'!P14*'Input Costs'!$I9 -> 21283.2 | T9: ='Input Volumes'!Q14*'Input Costs'!$I9 -> 21283.2 | U9: ='Input Volumes'!R14*'Input Costs'!$I9 -> 21283.2 | V9: ='Input Volumes'!S14*'Input Costs'!$I9 -> 21283.2 | W9: ='Input Volumes'!T14*'Input Costs'!$I9 -> 21283.2 | X9: ='Input Volumes'!U14*'Input Costs'!$I9 -> 21283.2 | Y9: ='Input Volumes'!V14*'Input Costs'!$I9 -> 21283.2 | AA9: =SUM($K9:OFFSET($K9,0,'Input Volumes'!$C$4+'Input Volumes'!$C$5 - 1)) -> 263379.6
B10: 3 | C10: =IF('Input Volumes'!C15=0,"",'Input Volumes'!C15) ->  | D10: =IF('Input Volumes'!D15=0,"",'Input Volumes'!D15) ->  | E10: =IF('Input Volumes'!E15=0,"",'Input Volumes'!E15) ->  | J10: =IF('Input Volumes'!G15="","",'Input Volumes'!G15) ->  | K10: ='Input Volumes'!H15*'Input Costs'!$I10 -> 0 | L10: ='Input Volumes'!I15*'Input Costs'!$I10 -> 0 | M10: ='Input Volumes'!J15*'Input Costs'!$I10 -> 0 | N10: ='Input Volumes'!K15*'Input Costs'!$I10 -> 0 | O10: ='Input Volumes'!L15*'Input Costs'!$I10 -> 0 | P10: ='Input Volumes'!M15*'Input Costs'!$I10 -> 0 | Q10: ='Input Volumes'!N15*'Input Costs'!$I10 -> 0 | R10: ='Input Volumes'!O15*'Input Costs'!$I10 -> 0 | S10: ='Input Volumes'!P15*'Input Costs'!$I10 -> 0 | T10: ='Input Volumes'!Q15*'Input Costs'!$I10 -> 0 | U10: ='Input Volumes'!R15*'Input Costs'!$I10 -> 0 | V10: ='Input Volumes'!S15*'Input Costs'!$I10 -> 0 | W10: ='Input Volumes'!T15*'Input Costs'!$I10 -> 0 | X10: ='Input Volumes'!U15*'Input Costs'!$I10 -> 0 | Y10: ='Input Volumes'!V15*'Input Costs'!$I10 -> 0 | AA10: =SUM($K10:OFFSET($K10,0,'Input Volumes'!$C$4+'Input Volumes'!$C$5 - 1)) -> 0
B11: 4 | C11: =IF('Input Volumes'!C16=0,"",'Input Volumes'!C16) ->  | D11: =IF('Input Volumes'!D16=0,"",'Input Volumes'!D16) ->  | E11: =IF('Input Volumes'!E16=0,"",'Input Volumes'!E16) ->  | J11: =IF('Input Volumes'!G16="","",'Input Volumes'!G16) ->  | K11: ='Input Volumes'!H16*'Input Costs'!$I11 -> 0 | L11: ='Input Volumes'!I16*'Input Costs'!$I11 -> 0 | M11: ='Input Volumes'!J16*'Input Costs'!$I11 -> 0 | N11: ='Input Volumes'!K16*'Input Costs'!$I11 -> 0 | O11: ='Input Volumes'!L16*'Input Costs'!$I11 -> 0 | P11: ='Input Volumes'!M16*'Input Costs'!$I11 -> 0 | Q11: ='Input Volumes'!N16*'Input Costs'!$I11 -> 0 | R11: ='Input Volumes'!O16*'Input Costs'!$I11 -> 0 | S11: ='Input Volumes'!P16*'Input Costs'!$I11 -> 0 | T11: ='Input Volumes'!Q16*'Input Costs'!$I11 -> 0 | U11: ='Input Volumes'!R16*'Input Costs'!$I11 -> 0 | V11: ='Input Volumes'!S16*'Input Costs'!$I11 -> 0 | W11: ='Input Volumes'!T16*'Input Costs'!$I11 -> 0 | X11: ='Input Volumes'!U16*'Input Costs'!$I11 -> 0 | Y11: ='Input Volumes'!V16*'Input Costs'!$I11 -> 0 | AA11: =SUM($K11:OFFSET($K11,0,'Input Volumes'!$C$4+'Input Volumes'!$C$5 - 1)) -> 0
B12: 5 | C12: =IF('Input Volumes'!C17=0,"",'Input Volumes'!C17) ->  | D12: =IF('Input Volumes'!D17=0,"",'Input Volumes'!D17) ->  | E12: =IF('Input Volumes'!E17=0,"",'Input Volumes'!E17) ->  | J12: =IF('Input Volumes'!G17="","",'Input Volumes'!G17) ->  | K12: ='Input Volumes'!H17*'Input Costs'!$I12 -> 0 | L12: ='Input Volumes'!I17*'Input Costs'!$I12 -> 0 | M12: ='Input Volumes'!J17*'Input Costs'!$I12 -> 0 | N12: ='Input Volumes'!K17*'Input Costs'!$I12 -> 0 | O12: ='Input Volumes'!L17*'Input Costs'!$I12 -> 0 | P12: ='Input Volumes'!M17*'Input Costs'!$I12 -> 0 | Q12: ='Input Volumes'!N17*'Input Costs'!$I12 -> 0 | R12: ='Input Volumes'!O17*'Input Costs'!$I12 -> 0 | S12: ='Input Volumes'!P17*'Input Costs'!$I12 -> 0 | T12: ='Input Volumes'!Q17*'Input Costs'!$I12 -> 0 | U12: ='Input Volumes'!R17*'Input Costs'!$I12 -> 0 | V12: ='Input Volumes'!S17*'Input Costs'!$I12 -> 0 | W12: ='Input Volumes'!T17*'Input Costs'!$I12 -> 0 | X12: ='Input Volumes'!U17*'Input Costs'!$I12 -> 0 | Y12: ='Input Volumes'!V17*'Input Costs'!$I12 -> 0 | AA12: =SUM($K12:OFFSET($K12,0,'Input Volumes'!$C$4+'Input Volumes'!$C$5 - 1)) -> 0
B13: 6 | C13: =IF('Input Volumes'!C18=0,"",'Input Volumes'!C18) ->  | D13: =IF('Input Volumes'!D18=0,"",'Input Volumes'!D18) ->  | E13: =IF('Input Volumes'!E18=0,"",'Input Volumes'!E18) ->  | J13: =IF('Input Volumes'!G18="","",'Input Volumes'!G18) ->  | K13: ='Input Volumes'!H18*'Input Costs'!$I13 -> 0 | L13: ='Input Volumes'!I18*'Input Costs'!$I13 -> 0 | M13: ='Input Volumes'!J18*'Input Costs'!$I13 -> 0 | N13: ='Input Volumes'!K18*'Input Costs'!$I13 -> 0 | O13: ='Input Volumes'!L18*'Input Costs'!$I13 -> 0 | P13: ='Input Volumes'!M18*'Input Costs'!$I13 -> 0 | Q13: ='Input Volumes'!N18*'Input Costs'!$I13 -> 0 | R13: ='Input Volumes'!O18*'Input Costs'!$I13 -> 0 | S13: ='Input Volumes'!P18*'Input Costs'!$I13 -> 0 | T13: ='Input Volumes'!Q18*'Input Costs'!$I13 -> 0 | U13: ='Input Volumes'!R18*'Input Costs'!$I13 -> 0 | V13: ='Input Volumes'!S18*'Input Costs'!$I13 -> 0 | W13: ='Input Volumes'!T18*'Input Costs'!$I13 -> 0 | X13: ='Input Volumes'!U18*'Input Costs'!$I13 -> 0 | Y13: ='Input Volumes'!V18*'Input Costs'!$I13 -> 0 | AA13: =SUM($K13:OFFSET($K13,0,'Input Volumes'!$C$4+'Input Volumes'!$C$5 - 1)) -> 0
B14: 7 | C14: =IF('Input Volumes'!C19=0,"",'Input Volumes'!C19) ->  | D14: =IF('Input Volumes'!D19=0,"",'Input Volumes'!D19) ->  | E14: =IF('Input Volumes'!E19=0,"",'Input Volumes'!E19) ->  | J14: =IF('Input Volumes'!G19="","",'Input Volumes'!G19) ->  | K14: ='Input Volumes'!H19*'Input Costs'!$I14 -> 0 | L14: ='Input Volumes'!I19*'Input Costs'!$I14 -> 0 | M14: ='Input Volumes'!J19*'Input Costs'!$I14 -> 0 | N14: ='Input Volumes'!K19*'Input Costs'!$I14 -> 0 | O14: ='Input Volumes'!L19*'Input Costs'!$I14 -> 0 | P14: ='Input Volumes'!M19*'Input Costs'!$I14 -> 0 | Q14: ='Input Volumes'!N19*'Input Costs'!$I14 -> 0 | R14: ='Input Volumes'!O19*'Input Costs'!$I14 -> 0 | S14: ='Input Volumes'!P19*'Input Costs'!$I14 -> 0 | T14: ='Input Volumes'!Q19*'Input Costs'!$I14 -> 0 | U14: ='Input Volumes'!R19*'Input Costs'!$I14 -> 0 | V14: ='Input Volumes'!S19*'Input Costs'!$I14 -> 0 | W14: ='Input Volumes'!T19*'Input Costs'!$I14 -> 0 | X14: ='Input Volumes'!U19*'Input Costs'!$I14 -> 0 | Y14: ='Input Volumes'!V19*'Input Costs'!$I14 -> 0 | AA14: =SUM($K14:OFFSET($K14,0,'Input Volumes'!$C$4+'Input Volumes'!$C$5 - 1)) -> 0
B15: 8 | C15: =IF('Input Volumes'!C20=0,"",'Input Volumes'!C20) ->  | D15: =IF('Input Volumes'!D20=0,"",'Input Volumes'!D20) ->  | E15: =IF('Input Volumes'!E20=0,"",'Input Volumes'!E20) ->  | J15: =IF('Input Volumes'!G20="","",'Input Volumes'!G20) ->  | K15: ='Input Volumes'!H20*'Input Costs'!$I15 -> 0 | L15: ='Input Volumes'!I20*'Input Costs'!$I15 -> 0 | M15: ='Input Volumes'!J20*'Input Costs'!$I15 -> 0 | N15: ='Input Volumes'!K20*'Input Costs'!$I15 -> 0 | O15: ='Input Volumes'!L20*'Input Costs'!$I15 -> 0 | P15: ='Input Volumes'!M20*'Input Costs'!$I15 -> 0 | Q15: ='Input Volumes'!N20*'Input Costs'!$I15 -> 0 | R15: ='Input Volumes'!O20*'Input Costs'!$I15 -> 0 | S15: ='Input Volumes'!P20*'Input Costs'!$I15 -> 0 | T15: ='Input Volumes'!Q20*'Input Costs'!$I15 -> 0 | U15: ='Input Volumes'!R20*'Input Costs'!$I15 -> 0 | V15: ='Input Volumes'!S20*'Input Costs'!$I15 -> 0 | W15: ='Input Volumes'!T20*'Input Costs'!$I15 -> 0 | X15: ='Input Volumes'!U20*'Input Costs'!$I15 -> 0 | Y15: ='Input Volumes'!V20*'Input Costs'!$I15 -> 0 | AA15: =SUM($K15:OFFSET($K15,0,'Input Volumes'!$C$4+'Input Volumes'!$C$5 - 1)) -> 0
B16: 9 | C16: =IF('Input Volumes'!C21=0,"",'Input Volumes'!C21) ->  | D16: =IF('Input Volumes'!D21=0,"",'Input Volumes'!D21) ->  | E16: =IF('Input Volumes'!E21=0,"",'Input Volumes'!E21) ->  | J16: =IF('Input Volumes'!G21="","",'Input Volumes'!G21) ->  | K16: ='Input Volumes'!H21*'Input Costs'!$I16 -> 0 | L16: ='Input Volumes'!I21*'Input Costs'!$I16 -> 0 | M16: ='Input Volumes'!J21*'Input Costs'!$I16 -> 0 | N16: ='Input Volumes'!K21*'Input Costs'!$I16 -> 0 | O16: ='Input Volumes'!L21*'Input Costs'!$I16 -> 0 | P16: ='Input Volumes'!M21*'Input Costs'!$I16 -> 0 | Q16: ='Input Volumes'!N21*'Input Costs'!$I16 -> 0 | R16: ='Input Volumes'!O21*'Input Costs'!$I16 -> 0 | S16: ='Input Volumes'!P21*'Input Costs'!$I16 -> 0 | T16: ='Input Volumes'!Q21*'Input Costs'!$I16 -> 0 | U16: ='Input Volumes'!R21*'Input Costs'!$I16 -> 0 | V16: ='Input Volumes'!S21*'Input Costs'!$I16 -> 0 | W16: ='Input Volumes'!T21*'Input Costs'!$I16 -> 0 | X16: ='Input Volumes'!U21*'Input Costs'!$I16 -> 0 | Y16: ='Input Volumes'!V21*'Input Costs'!$I16 -> 0 | AA16: =SUM($K16:OFFSET($K16,0,'Input Volumes'!$C$4+'Input Volumes'!$C$5 - 1)) -> 0
B17: 10 | K17: ='Input Volumes'!H22*'Input Costs'!$I17 -> 0 | L17: ='Input Volumes'!I22*'Input Costs'!$I17 -> 0 | M17: ='Input Volumes'!J22*'Input Costs'!$I17 -> 0 | N17: ='Input Volumes'!K22*'Input Costs'!$I17 -> 0 | O17: ='Input Volumes'!L22*'Input Costs'!$I17 -> 0 | P17: ='Input Volumes'!M22*'Input Costs'!$I17 -> 0 | Q17: ='Input Volumes'!N22*'Input Costs'!$I17 -> 0 | R17: ='Input Volumes'!O22*'Input Costs'!$I17 -> 0 | S17: ='Input Volumes'!P22*'Input Costs'!$I17 -> 0 | T17: ='Input Volumes'!Q22*'Input Costs'!$I17 -> 0 | U17: ='Input Volumes'!R22*'Input Costs'!$I17 -> 0 | V17: ='Input Volumes'!S22*'Input Costs'!$I17 -> 0 | W17: ='Input Volumes'!T22*'Input Costs'!$I17 -> 0 | X17: ='Input Volumes'!U22*'Input Costs'!$I17 -> 0 | Y17: ='Input Volumes'!V22*'Input Costs'!$I17 -> 0 | AA17: =SUM($K17:OFFSET($K17,0,'Input Volumes'!$C$4+'Input Volumes'!$C$5 - 1)) -> 0
AA18: =SUM(AA8:AA17) -> 266693.176

Sheet README
A2: Usage: This is a (very) simple cost model for business case creation. It uses macros just to make it simple to expand the model to whatever size is required via buttons on the first sheet, "Input Volumes". It is recommended to set the size before starting. You can disable the macros and just use this workbook as a starting template manually. Because the macros recognise the current dimensions by formatting you should not change the cell colour or border arrangements. Other formatting should be ok to change, certainly cell values and formula, other characteristics too. The buff coloured cells should not be changed manually if you ever want to use the macros again. The macros are useful because if you setup complex formulae and later find you need to increase the size of the worksheet you can do it quickly. If you have oversized the worksheet and need to delete then this has to be done manually. Please take care to replace borders and colours where they have been deleted or the macros may do something odd. You can always switch off the macros and work manually. There is a small button, in the top left of the "Input Volumes" sheet called "Set". This simply checks and amends if necessary the 2 values to its left indicating the number of columns used. If you manually delete areas this button can help correct formula that rely on the duration and "At risk" numbers. The other buttons do what they say on them.
A3: At risk months: This area is for use in the supply of services where some businesses elect to start "work at risk" before the contract is signed off by the client. Minimum Size: The workbook comes in a minimum size of 3 "at risk months" and 12 contracted. If you don't need columns, simply don't use them.
